Cogmind - Beta 13 @@@ ROGUE MODE // 2024.04.25 @ 22:41:29 Player: Cwaftwer Result: Destroyed by G-47 Trooper with Particle Gun Performance ------------- Evolutions (0) 0 Regions Visited (4) 800 Robots Destroyed (21) 105 Value Destroyed (306) 306 Prototype IDs (23) 460 Alien Tech Used (0) 0 Bonus (300) 300 TOTAL SCORE: 1971 Bonus ------- Aligned with FarCom 300 Cogmind --------- Core Integrity 0/250 Matter 148/300 Energy 94/100 System Corruption 0% Temperature Warm (172) Movement Hovering (240) Ox3 Location -9/Mines Parts ------- > --- POWER (1) -------- (None) > --- PROPULSION (2) --- Hover Unit > --- UTILITY (2) ------ Medium Storage Unit Signal Interpreter > --- WEAPON (2) ------- Light Assault Rifle Bore Cannon > --- INVENTORY (10) --- Light Ion Engine Light Ion Engine Flight Unit Flight Unit Flight Unit Weight Redist. System Seismic Detector Hacking Suite Light Assault Rifle Peak State ------------ > --- POWER ------------ (None) > --- PROPULSION ------- Hover Unit Hover Unit > --- UTILITY ---------- Medium Storage Unit Signal Interpreter > --- WEAPON ----------- Small Laser Bore Cannon > --- INVENTORY -------- Light Ion Engine Light Ion Engine Hover Unit Flight Unit Flight Unit Flight Unit Weight Redist. System Seismic Detector Hacking Suite [Rating: 11] Favorites ----------- Power Light Ion Engine Engine Light Ion Engine Propulsion Flight Unit Wheel Wheel Hover Unit Hover Unit Flight Unit Flight Unit Utility Weight Redist. System Device Weight Redist. System Storage Medium Storage Unit Processor Signal Interpreter Weapon Small Laser Energy Gun Small Laser Ballistic Gun Assault Rifle Ballistic Cannon Bore Cannon Build | -11 -10 -10 -10 -9 ------- Run | Yrd Mat Min Exi Min Slots Evolved . | . . . . . Power . | . . . . . Propulsion . | . . . . . Utility . | . . . . . Weapon . | . . . . . Parts Attached 34 | 6 18 . 5 5 Power 4 | 1 2 . 1 . Engine 4 | 1 2 . 1 . Core . | . . . . . Reactor . | . . . . . Propulsion 13 | 2 8 . 2 1 Treads . | . . . . . Leg . | . . . . . Wheel 2 | 2 . . . . Hover 5 | . 2 . 2 1 Flight 6 | . 6 . . . Utility 6 | 1 3 . 2 . Device 2 | . 1 . 1 . Storage 3 | 1 2 . . . Processor 1 | . . . 1 . Hackware . | . . . . . Protection . | . . . . . Artifact . | . . . . . Weapon 11 | 2 5 . . 4 Energy Gun 5 | 1 4 . . . Energy Cannon . | . . . . . Ballistic Gun 4 | 1 1 . . 2 Ballistic Cannon 2 | . . . . 2 Launcher . | . . . . . Special Weapon . | . . . . . Impact Weapon . | . . . . . Slashing Weapon . | . . . . . Piercing Weapon . | . . . . . Special Melee Weapon . | . . . . . Unidentified Prototypes . | . . . . . Parts Lost 7 | . 4 . . 3 Power 1 | . 1 . . . Propulsion 4 | . 2 . . 2 Utility . | . . . . . Weapon 2 | . 1 . . 1 Highest Loss Streak 3 | . 3 . . 2 To Critical Strikes . | . . . . . Average Slot Usage (%) 84 | . 86 85 85 79 Engine 11 | . 12 14 14 . Wheel 6 | . 10 . . . Hover 5 | . 2 . . 26 Flight 14 | . 13 28 28 . Device 8 | . 8 14 13 . Storage 14 | . 14 14 14 14 Processor 2 | . . . . 14 Energy Gun 13 | . 15 14 14 1 Ballistic Gun 7 | . 7 . . 16 Naked Turns . | . . . . . Heaviest Build 48 | 13 48 14 14 12 Greatest Support 20 | 20 20 14 14 12 Greatest Overweight (x) 4 | . 4 . 1 . Average Overweight (x) . | . . . . . Largest Inventory Capacity 20 | 8 20 10 10 10 Average Capacity 12 | 6 14 10 10 10 Most Carried 12 | 4 12 9 10 10 Average Carried 7 | 1 7 8 8 8 Final Capacity 10 | 8 10 10 10 10 Final Carried 10 | 1 8 9 10 9 Class Distribution -------------------- 60% | Mutant 39% | Scavenger-Mutant Dominant Class ---------------- Scavenger-Mutant | -10/Materials Mutant | -10/Mines Mutant | -10/Exiles Scavenger-Mutant | -9/Mines Resources | -11 -10 -10 -10 -9 ----------- Run | Yrd Mat Min Exi Min Matter Collected 552 | 65 353 . 85 49 Remotely . | . . . . . Salvage Created 455 | . 383 . . 72 Parts 41 | . 33 . . 8 Haulers Intercepted 1 | . 1 . . . Recyclers Shooed . | . . . . . Parts Field Recycled . | . . . . . Retrieved Matter . | . . . . . Parts Self-Destructed . | . . . . . Prevented . | . . . . . Kills | -11 -10 -10 -10 -9 ------- Run | Yrd Mat Min Exi Min Combat Hostiles Destroyed 17 | . 12 . . 5 Guns 14 | . 12 . . 2 Cannons 3 | . . . . 3 Classes Destroyed 6 | . 6 . . . Hauler 1 | . 1 . . . Recycler 1 | . 1 . . . Operator 1 | . 1 . . . Watcher 1 | . 1 . . . Swarmer 13 | . 9 . . 4 Grunt 4 | . 3 . . 1 Best Kill Streak 8 | . 8 . . 4 Combat Bots Only 8 | . 8 . . 4 Max Kills in Single Turn 1 | . 1 . . 1 Gunslinging . | . . . . . Exploded . | . . . . . Melee . | . . . . . Uniques/NPCs Destroyed . | . . . . . Combat | -11 -10 -10 -10 -9 -------- Run | Yrd Mat Min Exi Min Hostile Shots Fired 141 | . 95 3 . 43 Missed 32 | . 25 . . 7 Damage Taken 1063 | . 621 96 . 346 Core 262 | . 143 40 . 79 Absorbed by Shields . | . . . . . Core Remaining (%) 100 | 100 . . . . Volleys Fired 72 | . 55 . . 17 Largest 2 | . 2 . . 2 Hottest 97 | . 80 . . 97 Shots Fired 115 | . 87 . . 28 Gun 98 | . 87 . . 11 Cannon 17 | . . . . 17 Launcher . | . . . . . Special . | . . . . . Kinetic 49 | . 25 . . 24 Thermal 66 | . 62 . . 4 Explosive . | . . . . . Electromagnetic . | . . . . . Robot Hit Streak 12 | . 9 . . 12 Robot Miss Streak 4 | . 4 . . 2 Penetration Max . | . . . . . Secondary Targets 5 | . 5 . . . Max Gunslinging Chain 1 | . 1 . . . Shots Hit Robots 82 | . 64 . . 18 Core Hits 30 | . 24 . . 6 Critical Kills 3 | . . . . 3 Critical Parts Destroyed 1 | . . . . 1 Critical Strikes 4 | . . . . 4 Destroy 4 | . . . . 4 Melee Attacks . | . . . . . Impact . | . . . . . Slashing . | . . . . . Piercing . | . . . . . Sneak Attacks . | . . . . . Combat Hostiles . | . . . . . Follow-up Attacks . | . . . . . Damage Inflicted 1044 | . 728 . . 316 Guns 822 | . 728 . . 94 Cannons 222 | . . . . 222 Explosions . | . . . . . Melee . | . . . . . Ramming . | . . . . . Kinetic 476 | . 205 . . 271 Thermal 568 | . 523 . . 45 Explosive . | . . . . . Electromagnetic . | . . . . . Impact . | . . . . . Slashing . | . . . . . Piercing . | . . . . . Highest Corruption . | . . . . . Average Corruption . | . . . . . Corruption Purged . | . . . . . Corruption Blocked . | . . . . . Overload Shots . | . . . . . Overflow Damage 6 | . . . . 6 Projectiles 6 | . . . . 6 Explosions . | . . . . . Melee . | . . . . . Knockbacks 2 | . . . . 2 Impact . | . . . . . Kinetic 2 | . . . . 2 Secondary . | . . . . . Self-Inflicted Damage . | . . . . . Shots . | . . . . . Rammed . | . . . . . Targets Rammed . | . . . . . Kicked . | . . . . . Crushed . | . . . . . Highest Temperature 163 | . 155 . . 163 Average Temperature 52 | . 32 . . 90 Received Heat Transfer 144 | . 66 . . 78 Siege Activations . | . . . . . Robots Corrupted . | . . . . . Combat Hostiles . | . . . . . Parts Fried . | . . . . . Impact Corruptions . | . . . . . Robots Melted . | . . . . . Combat Hostiles . | . . . . . Parts Melted . | . . . . . Heat Transferred 1275 | . 1175 . . 100 Parts Sabotaged . | . . . . . Parts Stolen . | . . . . . Parts Stripped . | . . . . . Power Chain Reactions . | . . . . . Alert | -11 -10 -10 -10 -9 ------- Run | Yrd Mat Min Exi Min Peak Influence 275 | . 275 66 . 112 Initial 66 | . . 66 . . Average 127 | . 148 66 . 83 Maximum Alert Level 1 | . 1 . . . Low Security (%) 72 | 100 63 100 . 100 Level 1 27 | . 36 . . . Level 2 . | . . . . . Level 3 . | . . . . . Level 4 . | . . . . . Level 5 . | . . . . . High Security . | . . . . . Max Security . | . . . . . Squads Dispatched 1 | . 1 . . . Investigation . | . . . . . Extermination . | . . . . . Reinforcement 1 | . 1 . . . Assault . | . . . . . Garrison . | . . . . . Intercept . | . . . . . Searches Triggered . | . . . . . Construction Impeded . | . . . . . Haulers Reinforced . | . . . . . Active Scanning Responses . | . . . . . Cargo Convoy Interrupts . | . . . . . Stealth | -11 -10 -10 -10 -9 --------- Run | Yrd Mat Min Exi Min Distress Signals 2 | . 2 . . . Communications Jammed . | . . . . . Distress Signals . | . . . . . Times Spotted 33 | . 24 2 . 7 Peak Tracking Total 11 | . 11 2 . 4 Tactical Retreats 2 | . 2 . . . Traps | -11 -10 -10 -10 -9 ------- Run | Yrd Mat Min Exi Min Traps Triggered 2 | . 2 . . . Indirectly . | . . . . . Trap Hack Attempts . | . . . . . Triggered . | . . . . . Disarmed . | . . . . . Reprogrammed . | . . . . . Reused . | . . . . . Traps Extracted . | . . . . . Installed . | . . . . . Triggered . | . . . . . Machines | -11 -10 -10 -10 -9 ---------- Run | Yrd Mat Min Exi Min Machines Disabled . | . . . . . Max in Single Turn . | . . . . . Machines Repaired . | . . . . . Machines Dismantled . | . . . . . Machines Sabotaged . | . . . . . Overloaded Fab Kills . | . . . . . Hacking | -11 -10 -10 -10 -9 --------- Run | Yrd Mat Min Exi Min Machines Accessed 6 | . 4 . 2 . Terminals 4 | . 4 . . . Fabricators . | . . . . . Repair Stations . | . . . . . Recycling Units . | . . . . . Scanalyzers . | . . . . . Garrison Access . | . . . . . Total Hacks 37 | . 13 . 24 . Successful 30 | . 6 . 24 . Failed 7 | . 7 . . . Catastrophic 1 | . 1 . . . Database Lockouts . | . . . . . Manual 1 | . . . 1 . Terminals 13 | . 13 . . . Fabricators . | . . . . . Repair Stations . | . . . . . Recycling Units . | . . . . . Scanalyzers . | . . . . . Garrison Access . | . . . . . Terminal Hacks 30 | . 6 . 24 . Record 26 | . 3 . 23 . Branch Access Points 1 | . 1 . . . Emergency Access Points 1 | . 1 . . . Registered Components 1 | . 1 . . . Derelict Proto ID Bank 1 | . . . 1 . Fabricator Hacks . | . . . . . Repair Station Hacks . | . . . . . Recycling Unit Hacks . | . . . . . Scanalyzer . | . . . . . Garrison Access Hacks . | . . . . . Unauthorized Hacks . | . . . . . Terminals . | . . . . . Fabricators . | . . . . . Repair Stations . | . . . . . Recycling Units . | . . . . . Scanalyzers . | . . . . . Garrison Access . | . . . . . Data Cores Recovered . | . . . . . Used . | . . . . . Hacking Detections 4 | . 4 . . . Full Trace Events . | . . . . . Feedback Events . | . . . . . Feedback Blocked . | . . . . . Robot Schematics Acquired . | . . . . . Robots Built . | . . . . . Authchips . | . . . . . Time . | . . . . . Total Robot Build Rating . | . . . . . Part Schematics Acquired . | . . . . . Parts Built . | . . . . . Authchips . | . . . . . Time . | . . . . . Total Part Build Rating . | . . . . . Parts Repaired . | . . . . . Time . | . . . . . Parts Recycled . | . . . . . Recycled Matter . | . . . . . Retrieved Matter . | . . . . . Retrieved Components . | . . . . . Parts Scanalyzed . | . . . . . Part Schematics Acquired . | . . . . . Parts Damaged . | . . . . . Bothacking | -11 -10 -10 -10 -9 ------------ Run | Yrd Mat Min Exi Min Used RIF Installer . | . . . . . Robots Hacked . | . . . . . Non-combat . | . . . . . Combat . | . . . . . Robot Hacks Applied . | . . . . . Relay Couplers Released . | . . . . . Fabnet Peak Effective % . | . . . . . Robots Rewired . | . . . . . Allies Hacked . | . . . . . Hacks Repelled . | . . . . . Allies | -11 -10 -10 -10 -9 -------- Run | Yrd Mat Min Exi Min Total Allies . | . . . . . Largest Group . | . . . . . Highest-Rated Group . | . . . . . Highest-Rated Ally . | . . . . . Total Orders . | . . . . . Ally Attacks . | . . . . . Total Damage . | . . . . . Kills . | . . . . . Allies Corrupted . | . . . . . Allies Melted . | . . . . . Intel | -11 -10 -10 -10 -9 ------- Run | Yrd Mat Min Exi Min Robot Analysis Total . | . . . . . Derelict Logs Recovered 2 | . . 1 . 1 Drone Launches . | . . . . . Drone Recoveries . | . . . . . Exploration | -11 -10 -10 -10 -9 ------------- Run | Yrd Mat Min Exi Min Turns Passed 922 | 41 575 28 161 117 Spaces Moved 1059 | 38 474 72 391 84 Core 7 | 7 . . . . Treads . | . . . . . Legs . | . . . . . Wheels 181 | 31 150 . . . Hover 112 | . 27 . 1 84 Flight 759 | . 297 72 390 . Fastest Speed 37 | 50 37 37 37 56 Average Speed 59 | 74 79 37 38 56 Slowest Speed 360 | 80 360 37 117 56 Overloaded Moves . | . . . . . Propulsion Burnouts . | . . . . . Robots Hopped 2 | . 2 . . . Cave-ins Triggered . | . . . . . Exploration Rate (%) 40 | 3 69 22 86 22 Regions Visited 4 Branch Regions 3 Pre-discovered Areas 1 | . . . 1 . Known Exits Taken 2 | . 1 . 1 . Unknown Exits Taken 2 | 1 . 1 . . Scrap Searched . | . . . . . Spaces Dug . | . . . . . Terrain Destroyed 13 | . . . . 13 Melee . | . . . . . Projectile 13 | . . . . 13 AOE . | . . . . . Terrain Rammed . | . . . . . Walls Destroyed . | . . . . . Machines Disabled . | . . . . . Actions | -11 -10 -10 -10 -9 --------- Run | Yrd Mat Min Exi Min Total 1241 | 50 587 72 402 130 Wait 23 | . 6 . . 17 Move 1051 | 37 469 71 390 84 Hop 2 | . 2 . . . Pick Up 40 | 7 25 1 3 4 Fast Attach . | . . . . . Attach 25 | 6 12 . 3 4 Detach 4 | . 2 . 1 1 Swap 9 | . 6 . 2 1 Drop 15 | . 10 . 3 2 Fire 72 | . 55 . . 17 Melee . | . . . . . Ram . | . . . . . Kick . | . . . . . Crush . | . . . . . Escape Stasis . | . . . . . Rewire . | . . . . . Trap . | . . . . . Miscellaneous . | . . . . . Route ------- -11/Scrapyard -10/Materials (discovered 3 exits: [*Mat] / *Min x2) -10/Mines -10/Exiles -9/Mines (discovered 1 exit: *Mat) History --------- Turn | Location | Event 2 | -11/Scrapyard | Met Revision 17 31 | -11/Scrapyard | Discovered new exit (range 15) 42 | -11/Scrapyard | Entered Materials 92 | -10/Materials | Identified exit to Mines 281 | -10/Materials | Destroyed 8 combat bots 286 | -10/Materials | Lost 3 parts (1p1n1w) 530 | -10/Materials | Discovered new exit (range 16) 588 | -10/Materials | Core integrity fell below 50% 617 | -10/Materials | Entered Mines 618 | -10/Mines | Assembled infested the area 622 | -10/Mines | Met a Derelict bent on vengeance 625 | -10/Mines | Learned 2 Materials zone layouts 638 | -10/Mines | A weapon hastily lodged in a ceiling crevice suddenly fell to the ground 643 | -10/Mines | Deemed a non-threat by the Exiles lab entrance 643 | -10/Mines | Discovered new exit (range 5) 645 | -10/Mines | Entered Exiles 655 | -10/Exiles | Met 8R-AWN 661 | -10/Exiles | Met EX-HEX 673 | -10/Exiles | Met EX-BIN 678 | -10/Exiles | Aligned with FarCom system 679 | -10/Exiles | Given EX-Vault access code 687 | -10/Exiles | Opened EX-Vault 702 | -10/Exiles | Warned to stay clear of 0b10 Research branches 712 | -10/Exiles | Met EX-DEC 715 | -10/Exiles | Learned location of Zion (-6) 730 | -10/Exiles | Visited The Gauntlet 789 | -10/Exiles | Discovered new exit (range 10) 794 | -10/Exiles | Identified exit to Mines 806 | -10/Exiles | Entered Mines 813 | -9/Mines | Core integrity fell below 20% 863 | -9/Mines | Discovered new exit (range 11) 869 | -9/Mines | Identified exit to Materials 886 | -9/Mines | Learned Materials terminal intel 923 | -9/Mines | Destroyed by G-47 Trooper with Particle Gun Last Messages --------------- K-01 Serf collects debris. EXIT=FOUND K-01 Serf collects debris. EXIT=IDENTIFIED: MATERIALS K-01 Serf collects debris. Acquired derelict log, extracted data. Data stored: Materials terminal intel. K-01 Serf collects debris. HV Slug penetrates Wall. G-34 Mercenary suffers critical hit (Destroy). G-34 Mercenary destroyed. HV Slug penetrates G-47 Trooper. HV Slug penetrates Wall. HV Slug penetrates G-47 Trooper. G-47 Trooper knocked back. HV Slug penetrates G-47 Trooper. HV Slug penetrates Earth. U-05 Engineer builds a Wall. HV Slug penetrates Earth. Hover Unit destroyed. Map ----- +----------------------------------------------------+ | ?????????????????????????????????????? | | ?????????????????????????????????????? | | ?????????????????????????????????????? | | ?????????????????????????????????????? | | ?????????????????????????????????????? | | ?????????????????????????????????????? | | ?????????????????????????????????????? | | ?????????????????????????????????????? | | ?????????????????????????????????????? | | ?????????????????????????????????????? | | ?????????????????????????????????????? | | ?????????????????????????????????????? | | ?????????????????????????????????????? | | ?????????????????????????????????????? | | ?????????????????????????????????????? | | ?????????????g???????????????????????? | | ?????????????????????????????????????? | | ?????????????????b???????????????????? | | ????????????????g????????????????????? | | ?????????????????????????????????????? | | ?????????????????????????????????????? | | ?????????????????????????????????????? | | ???????????????#?????????????????????? | | ?????????????? #?????????????????????? | | ??????######## #?????????????????????? | | ??????# %*@ #???????#?????????????? | | ??????######g;##?????? #?????????????? | | ??????????##g##?????? #?????????????? | | ??????????##u#??????# ##????????????? | | ???????????# #?????# ####?????????? | | ???????????# #???? ?????????? | | ???????????# #??? ????????? | | ?????####??# #?? #??????????? | | ????## #### ### #??????????? | | ???## #??????????? | | ???# #??????????? | | ???# ########$ #?????????? | | ???# ##????????? ???????? | | ???# ##???????????? #?????????? | | ???# ##??????????????#??????????? | | ???## #?????????????????????????? | | ????## #?????????????????????????? | | ?????# ##?????????????????????????? | | ????## ##??????????????????????????? | | ???## ##??????????????????????????? | | ???# ##?????????????????????????? | | ???# ##????????????????????????? | | ???## ##???????????????????????? | | ????##### ###?????????????????????? | | ????????### ##????????????????????? | +----------------------------------------------------+ Best States ------------- Heat Dissipation 25 Energy Generation 10 Energy Capacity 250 Matter Stores 300 Matter Capacity 300 Sight Range 16 Terrain Scan Density 10 Additional Mass Support 6 Evasion (%) 62 Item Schematics ----------------- None Robot Schematics ------------------ None Fabricated ------------ Nothing Alien Tech Used ----------------- None Achievements -------------- None Challenges ------------ None Game ------ Seed MetafiberHeavyInverter Manual? 0 Play Time 00:15:22 Cumulative 34.3 hours Start 2024.04.25 @ 22:27:01 End 2024.04.25 @ 22:41:29 Sessions 1 Manual Loads 0 Difficulty Rogue Special Mode None Game No. 49 Rogue 48 Adventurer 1 Explorer 0 Win Type - Total 0 Types 0/0/0/0/0/0/0/0/0 Lore% 28 Gallery% 36 Achievement% 28 Wizard Run 0 Options --------- Layout 1 ASCII 0 Keyboard 0 Movement Mouse Keybinds 0 Fullscreen 1 Font 24/Smallcaps Map View 50x40 Zoom Use 0% Tactical HUD 0 Map Filters NONE Filters NONE Steam 1 RUN: b7f62755-8617-4349-92b7-e834dc4a627d